[Event "71st RUS-ch Higher League 2018"]
[Site "Yaroslavl"]
[Date "2018.06.27"]
[Round "2"]
[White "Pridorozhni, Aleksei"]
[Black "Tekeyev, Zaur"]
[Result "1-0"]
[ECO "B24"]
[WhiteElo "2589"]
[BlackElo "2407"]
[Annotator "ChessBase"]
[PlyCount "121"]
[EventDate "2018.06.26"]
[EventType "swiss"]
[EventCountry "RUS"]
[SourceTitle "playchess.com"]
[Source "ChessBase"]
[SourceQuality "1"]
[TimeControl "40/5400+30:1800+30"]

1. e4 {[%emt 0:00:13]} c5 {[%emt 0:00:08]} 2. Nc3 {[%emt 0:00:11]} Nc6 {[%emt 0:00:13]} 3. Bb5 {[%emt 0:00:11]} Nd4 {[%emt 0:00:11]} 4. Bc4 {[%emt 0:00:07]} a6 {[%emt 0:00:13]} 5. d3 {[%emt 0:00:58]} e6 {[%emt 0:07:37]} 6. Nf3 {[%emt 0:01:30]} b5 {[%emt 0:00:31]} 7. Bb3 {[%emt 0:00:05]} Nxb3 {[%emt 0:01:03]} 8. axb3 {[%emt 0:00:06]} Bb7 {[%emt 0:00:13]} 9. O-O {[%emt 0:03:08]} Nf6 {[%emt 0:17:02]} 10. e5 {[%emt 0:08:02]} Nd5 {[%emt 0:00:23]} 11. Ne4 {[%emt 0:03:19]} Be7 {[%emt 0:02:07]} 12. c4 {[%emt 0:35:22]} Nb4 {[%emt 0:04:33]} 13. Be3 {[%emt 0:00:42]} Bxe4 {[%emt 0:36:51]} 14. dxe4 {[%emt 0:00:12]} bxc4 {[%emt 0:00:22]} 15. bxc4 {[%emt 0:00:40]} Qc7 {[%emt 0:02:29]} 16. Bd2 {[%emt 0:08:21]} Nc6 {[%emt 0:03:16]} 17. Bc3 {[%emt 0:00:56]} O-O {[%emt 0:01:19]} 18. Qe2 {[%emt 0:00:43]} Rfd8 {[%emt 0:04:33]} 19. Rfd1 {[%emt 0:00:54]} h6 {[%emt 0:00:59]} 20. h4 {[%emt 0:02:22]} d6 {[%emt 0:02:34]} 21. exd6 {[%emt 0:00:15]} Rxd6 {[%emt 0:01:29]} 22. Rxd6 {[%emt 0:00:35]} Bxd6 {[%emt 0:01:41]} 23. e5 {[%emt 0:00:09]} Bf8 {[%emt 0:00:21]} 24. Qe4 {[%emt 0:00:10]} Qd7 {[%emt 0:01:05]} 25. g4 {[%emt 0:00:30]} g6 {[%emt 0:01:56]} 26. Kg2 {[%emt 0:04:45]} a5 {[%emt 0:00:22]} 27. Nd2 {[%emt 0:12:03]} a4 {[%emt 0:02:43]} 28. h5 {[%emt 0:01:37]} g5 {[%emt 0:04:44]} 29. f4 {[%emt 0:00:43]} gxf4 {[%emt 0:01:16]} 30. Qxf4 {[%emt 0:00:11]} Qd3 {[%emt 0:00:49]} 31. Qf3 {[%emt 0:04:40]} Qxf3+ {[%emt 0:00:51]} 32. Kxf3 {[%emt 0:00:06]} Ra7 {[%emt 0:01:45]} 33. Ne4 {[%emt 0:00:40]} Be7 {[%emt 0:00:05]} 34. Kf4 {[%emt 0:00:10]} Kg7 {[%emt 0:00:22]} 35. Ra3 {[%emt 0:02:37]} Kh7 {[%emt 0:01:20]} 36. Be1 {[%emt 0:03:51]} Rb7 {[%emt 0:00:31]} 37. Bc3 {[%emt 0:05:37]} Ra7 {[%emt 0:00:01]} 38. Ra1 {[%emt 0:00:24]} Kg7 {[%emt 0:00:32]} 39. Ke3 {[%emt 0:00:38]} Kf8 {[%emt 0:00:52]} 40. Nd6 {[%emt 0:00:00]} Bg5+ {[%emt 0:00:35]} 41. Ke4 {[%emt 0:07:41]} Ra6 {[%emt 0:02:40]} 42. Rf1 {[%emt 0:05:42]} Ra7 {[%emt 0:17:09]} 43. Ra1 {[%emt 0:03:45]} Ra6 {[%emt 0:01:08]} 44. Nb5 {[%emt 0:00:13]} Nb8 {[%emt 0:00:28]} 45. Be1 {[%emt 0:00:16]} Nd7 {[%emt 0:04:29]} 46. Bf2 {[%emt 0:03:25]} Be7 {[%emt 0:00:07]} 47. Be3 {[%emt 0:01:37]} Kg7 {[%emt 0:01:00]} 48. b3 {[%emt 0:00:42]} Nb6 {[%emt 0:00:42]} 49. Nc3 {[%emt 0:00:08]} f6 {[%emt 0:02:47]} 50. Nxa4 {[%emt 0:01:04]} fxe5 {[%emt 0:00:16]} 51. Kf3 {[%emt 0:06:08]} Ra8 {[%emt 0:01:25]} 52. Ra2 {[%emt 0:00:39]} Ra7 {[%emt 0:01:42]} 53. Nc3 {[%emt 0:00:29]} Rb7 {[%emt 0:00:51]} 54. Ra6 {[%emt 0:01:01]} Bf8 {[%emt 0:00:31]} 55. Ke2 {[%emt 0:00:55]} Kf7 {[%emt 0:00:24]} 56. Ne4 {[%emt 0:00:31]} Nd7 {[%emt 0:00:28]} 57. Bxh6 {[%emt 0:00:50]} Rxb3 {[%emt 0:00:58]} 58. Ng5+ {[%emt 0:00:10]} Kg8 {[%emt 0:00:30]} 59. Ra8 {[%emt 0:00:17]} Rg3 {[%emt 0:01:18]} 60. Bxf8 {[%emt 0:00:30]} Nxf8 {[%emt 0:00:05]} 61. h6 {[%emt 0:00:24]} 1-0

[Event "71st RUS-ch Higher League 2018"]
[Site "Yaroslavl"]
[Date "2018.06.27"]
[Round "2"]
[White "Timofeev, Artyom"]
[Black "Rodin, Dmitrij"]
[Result "1-0"]
[ECO "D54"]
[WhiteElo "2583"]
[BlackElo "2402"]
[Annotator "ChessBase"]
[PlyCount "95"]
[EventDate "2018.06.26"]
[EventType "swiss"]
[EventCountry "RUS"]
[SourceTitle "playchess.com"]
[Source "ChessBase"]
[SourceQuality "1"]
[TimeControl "40/5400+30:1800+30"]

1. d4 {[%emt 0:00:00]} Nf6 {[%emt 0:00:05]} 2. Bg5 {[%emt 0:00:00]} d5 {[%emt 0:10:08]} 3. e3 {[%emt 0:03:58]} e6 {[%emt 0:02:24]} 4. c4 {[%emt 0:04:24]} Be7 {[%emt 0:05:04]} 5. Nc3 {[%emt 0:01:55]} O-O {[%emt 0:00:28]} 6. Rc1 {[%emt 0:02:10]} Nbd7 {[%emt 0:09:16]} 7. cxd5 {[%emt 0:07:09]} exd5 {[%emt 0:01:36]} 8. Bd3 {[%emt 0:00:08]} c6 {[%emt 0:02:27]} 9. Nge2 {[%emt 0:03:41]} Re8 {[%emt 0:01:48]} 10. O-O {[%emt 0:03:57]} Ne4 {[%emt 0:10:54]} 11. Bf4 {[%emt 0:02:39]} Ndf6 {[%emt 0:01:24]} 12. f3 {[%emt 0:01:09]} Nxc3 {[%emt 0:01:23]} 13. bxc3 {[%emt 0:00:06]} Nh5 {[%emt 0:17:14]} 14. Qc2 {[%emt 0:00:50]} g6 {[%emt 0:01:21]} 15. Bh6 {[%emt 0:04:09]} Bg5 {[%emt 0:11:23]} 16. Bxg5 {[%emt 0:00:26]} Qxg5 {[%emt 0:00:02]} 17. e4 {[%emt 0:00:23]} Bd7 {[%emt 0:08:55]} 18. f4 {[%emt 0:02:06]} Qe7 {[%emt 0:00:53]} 19. e5 {[%emt 0:00:10]} Ng7 {[%emt 0:01:23]} 20. h3 {[%emt 0:03:59]} c5 {[%emt 0:02:46]} 21. Qd2 {[%emt 0:02:06]} Rac8 {[%emt 0:01:02]} 22. Rce1 {[%emt 0:00:16]} cxd4 {[%emt 0:03:24]} 23. cxd4 {[%emt 0:00:05]} a6 {[%emt 0:04:01]} 24. Ng3 {[%emt 0:01:44]} Qa3 {[%emt 0:01:31]} 25. Rf3 {[%emt 0:02:47]} Qc3 {[%emt 0:00:36]} 26. Qf2 {[%emt 0:00:07]} Ne6 {[%emt 0:00:58]} 27. Bxg6 {[%emt 0:09:58]} Qxd4 {[%emt 0:00:17]} 28. Bb1 {[%emt 0:00:07]} Qxf2+ {[%emt 0:00:26]} 29. Kxf2 {[%emt 0:00:34]} Ng7 {[%emt 0:00:44]} 30. f5 {[%emt 0:00:08]} f6 {[%emt 0:00:18]} 31. e6 {[%emt 0:00:06]} Bb5 {[%emt 0:00:48]} 32. Ne2 {[%emt 0:00:53]} Bxe2 {[%emt 0:00:33]} 33. Rxe2 {[%emt 0:00:05]} Kf8 {[%emt 0:00:14]} 34. Rd2 {[%emt 0:03:39]} Red8 {[%emt 0:00:38]} 35. Rb3 {[%emt 0:03:53]} Rc7 {[%emt 0:00:22]} 36. Be4 {[%emt 0:01:15]} Ke7 {[%emt 0:00:31]} 37. Rxd5 {[%emt 0:01:22]} Rxd5 {[%emt 0:00:05]} 38. Bxd5 {[%emt 0:00:04]} Nxf5 {[%emt 0:00:26]} 39. Rxb7 {[%emt 0:00:14]} Rxb7 {[%emt 0:00:28]} 40. Bxb7 {[%emt 0:00:00]} a5 {[%emt 0:01:18]} 41. Be4 {[%emt 0:00:28]} Kxe6 {[%emt 0:12:12]} 42. g4 {[%emt 0:00:54]} Nd6 {[%emt 0:00:09]} 43. Bxh7 {[%emt 0:00:07]} Ke5 {[%emt 0:00:04]} 44. Kf3 {[%emt 0:02:01]} Nb5 {[%emt 0:01:11]} 45. h4 {[%emt 0:02:26]} f5 {[%emt 0:02:16]} 46. Bxf5 {[%emt 0:02:22]} Nc3 {[%emt 0:00:54]} 47. a3 {[%emt 0:00:51]} a4 {[%emt 0:00:18]} 48. Bd3 {[%emt 0:02:18]} 1-0

[Event "71st RUS-ch Higher League 2018"]
[Site "Yaroslavl"]
[Date "2018.06.27"]
[Round "2"]
[White "Sarana, Alexey"]
[Black "Dreev, Aleksey"]
[Result "1-0"]
[ECO "D43"]
[WhiteElo "2573"]
[BlackElo "2657"]
[Annotator "RC"]
[PlyCount "59"]
[EventDate "2018.06.26"]
[EventType "swiss"]
[EventCountry "RUS"]
[SourceTitle "playchess.com"]
[Source "ChessBase"]
[SourceQuality "1"]
[TimeControl "40/5400+30:1800+30"]

1. d4 {[%emt 0:00:00]} d5 {[%emt 0:00:49]} 2. Nf3 {[%emt 0:00:00]} Nf6 {[%emt 0:00:07]} 3. c4 {[%emt 0:00:00]} c6 {[%emt 0:00:16]} 4. Nc3 {[%emt 0:00:00]} e6 {[%emt 0:00:03]} 5. g3 {[%emt 0:00:05]} dxc4 {[%emt 0:02:54]} 6. Bg2 {[%emt 0:00:21]} Nbd7 {[%emt 0:00:53]} 7. O-O {[%emt 0:00:30]} Be7 {[%emt 0:00:30]} 8. a4 {[%emt 0:00:12]} O-O {[%emt 0:00:17]} 9. e4 {[%emt 0:00:21]} e5 {[%emt 0:03:53]} 10. dxe5 {[%emt 0:00:23]} Ng4 {[%emt 0:00:06]} 11. Bf4 {[%emt 0:00:08]} Qa5 {[%emt 0:01:18]} 12. e6 {[%emt 0:00:18]} fxe6 {[%emt 0:00:57]} 13. Bh3 {[%emt 0:00:08]} Nde5 {[%emt 0:07:05]} 14. Bxg4 {[%emt 0:00:27]} Nxg4 {[%emt 0:00:08]} 15. e5 {[%emt 0:00:03]} Qd8 {[%emt 0:08:27]} 16. Nd2 {[%emt 0:00:22]} h5 {[%emt 0:10:49]} 17. h3 {[%emt 0:00:14]} g5 {[%emt 0:01:06]} 18. hxg4 {[%emt 0:00:05]} gxf4 {[%emt 0:00:03]} 19. gxh5 {[%emt 0:00:22]} fxg3 {[%emt 0:23:06]} 20. Nde4 {[%emt 0:07:52]} gxf2+ {[%emt 0:14:37]} 21. Rxf2 {[%emt 0:00:07]} Rxf2 {[%emt 0:03:51]} 22. Qxd8+ {[%emt 0:27:14]} Bxd8 {[%emt 0:00:02]} 23. Kxf2 {[%emt 0:00:10]} Bc7 {[%emt 0:09:02]} 24. Rg1+ {[%emt 0:04:04]} Kf7 {[%emt 0:08:19]} 25. Rg5 {[%emt 0:02:10]} Bd7 {[%emt 0:01:38]} 26. h6 {[%emt 0:00:07]} Bxe5 {[%emt 0:02:01]} 27. Rxe5 {[%emt 0:00:02]} Rh8 {[%emt 0:00:59]} 28. Nd6+ {[%emt 0:02:35]} Ke7 {[%emt 0:00:41]} 29. Nce4 {[%emt 0:00:12]} Rxh6 {[%emt 0:00:23]} 30. Nf5+ {[%emt 0:00:09]} 1-0

[Event "71st RUS-ch Higher League 2018"]
[Site "Yaroslavl"]
[Date "2018.06.27"]
[Round "2"]
[White "Moskalenko, Alexander"]
[Black "Sek, Konstantin"]
[Result "1/2-1/2"]
[ECO "C78"]
[WhiteElo "2558"]
[BlackElo "2476"]
[Annotator "RC"]
[PlyCount "80"]
[EventDate "2018.06.26"]
[EventType "swiss"]
[EventCountry "RUS"]
[SourceTitle "playchess.com"]
[Source "ChessBase"]
[SourceQuality "1"]
[TimeControl "40/5400+30:1800+30"]

1. e4 {[%emt 0:06:21]} e5 {[%emt 0:00:09]} 2. Nf3 {[%emt 0:00:14]} Nc6 {[%emt 0:00:06]} 3. Bb5 {[%emt 0:00:41]} a6 {[%emt 0:00:05]} 4. Ba4 {[%emt 0:01:06]} Nf6 {[%emt 0:00:06]} 5. O-O {[%emt 0:00:11]} b5 {[%emt 0:00:52]} 6. Bb3 {[%emt 0:00:05]} Be7 {[%emt 0:00:04]} 7. d3 {[%emt 0:00:30]} O-O {[%emt 0:00:06]} 8. Nc3 {[%emt 0:16:34]} d6 {[%emt 0:01:17]} 9. a3 {[%emt 0:00:09]} Nb8 {[%emt 0:17:07]} 10. a4 {[%emt 0:06:45]} b4 {[%emt 0:01:24]} 11. Nd5 {[%emt 0:00:08]} Nxd5 {[%emt 0:00:25]} 12. Bxd5 {[%emt 0:00:06]} c6 {[%emt 0:00:32]} 13. Bb3 {[%emt 0:05:55]} Bg4 {[%emt 0:02:20]} 14. h3 {[%emt 0:00:29]} Bh5 {[%emt 0:00:06]} 15. a5 {[%emt 0:08:21]} Nd7 {[%emt 0:00:40]} 16. Bd2 {[%emt 0:00:12]} Nc5 {[%emt 0:04:51]} 17. Bxb4 {[%emt 0:02:26]} Nxb3 {[%emt 0:01:28]} 18. cxb3 {[%emt 0:00:05]} Rb8 {[%emt 0:03:02]} 19. Bc3 {[%emt 0:02:35]} Bxf3 {[%emt 0:05:37]} 20. Qxf3 {[%emt 0:00:32]} Rxb3 {[%emt 0:00:26]} 21. Qd1 {[%emt 0:08:05]} Qb8 {[%emt 0:03:47]} 22. f4 {[%emt 0:12:32]} exf4 {[%emt 0:14:50]} 23. Rxf4 {[%emt 0:04:09]} d5 {[%emt 0:02:12]} 24. Rf1 {[%emt 0:10:42]} dxe4 {[%emt 0:20:57]} 25. Qg4 {[%emt 0:01:03]} Rxc3 {[%emt 0:07:00]} 26. bxc3 {[%emt 0:00:05]} exd3 {[%emt 0:00:11]} 27. Rad1 {[%emt 0:06:04]} Qb5 {[%emt 0:02:57]} 28. Qf5 {[%emt 0:04:36]} Qxf5 {[%emt 0:04:44]} 29. Rxf5 {[%emt 0:00:03]} Rd8 {[%emt 0:00:09]} 30. Rd2 {[%emt 0:01:07]} g6 {[%emt 0:04:22]} 31. Rf3 {[%emt 0:00:00]} Rd5 {[%emt 0:00:00]} 32. Rdxd3 {[%emt 0:00:40]} Rxa5 {[%emt 0:00:00]} 33. Rd7 {[%emt 0:00:38]} Re5 {[%emt 0:01:40]} 34. Kf1 {[%emt 0:00:56]} Re6 {[%emt 0:02:45]} 35. Ra7 {[%emt 0:00:18]} c5 {[%emt 0:00:08]} 36. c4 {[%emt 0:02:25]} Re4 {[%emt 0:01:15]} 37. Rc3 {[%emt 0:00:58]} Bf6 {[%emt 0:00:27]} 38. Rc2 {[%emt 0:00:36]} Bh4 {[%emt 0:00:32]} 39. Rc1 {[%emt 0:00:00]} Bg5 {[%emt 0:00:00]} 40. Rc2 {[%emt 0:00:00]} Bh4 {[%emt 0:01:19]} 1/2-1/2

[Event "71st RUS-ch Higher League 2018"]
[Site "Yaroslavl"]
[Date "2018.06.27"]
[Round "2"]
[White "Usmanov, Vasily"]
[Black "Predke, Alexandr"]
[Result "1/2-1/2"]
[ECO "E04"]
[WhiteElo "2477"]
[BlackElo "2613"]
[Annotator "ChessBase"]
[PlyCount "113"]
[EventDate "2018.06.26"]
[EventType "swiss"]
[EventCountry "RUS"]
[SourceTitle "playchess.com"]
[Source "ChessBase"]
[SourceQuality "1"]
[TimeControl "40/5400+30:1800+30"]

1. Nf3 {[%emt 0:00:00]} d5 {[%emt 0:01:47]} 2. c4 {[%emt 0:00:45]} e6 {[%emt 0:00:27]} 3. d4 {[%emt 0:01:55]} Nf6 {[%emt 0:01:18]} 4. g3 {[%emt 0:00:56]} dxc4 {[%emt 0:03:01]} 5. Bg2 {[%emt 0:01:00]} Bd7 {[%emt 0:05:51]} 6. Nbd2 {[%emt 0:09:31]} Bb4 {[%emt 0:09:15]} 7. O-O {[%emt 0:08:25]} Bxd2 {[%emt 0:00:14]} 8. Bxd2 {[%emt 0:02:29]} Bc6 {[%emt 0:00:06]} 9. Qc2 {[%emt 0:02:54]} b5 {[%emt 0:10:54]} 10. Bg5 {[%emt 0:06:14]} Nbd7 {[%emt 0:17:58]} 11. b3 {[%emt 0:09:01]} Be4 {[%emt 0:02:03]} 12. Qxe4 {[%emt 0:05:45]} Nxe4 {[%emt 0:00:05]} 13. Bxd8 {[%emt 0:00:05]} Rxd8 {[%emt 0:00:05]} 14. bxc4 {[%emt 0:04:09]} b4 {[%emt 0:00:06]} 15. Rfb1 {[%emt 0:01:16]} Rb8 {[%emt 0:03:39]} 16. Rb3 {[%emt 0:08:21]} a5 {[%emt 0:02:27]} 17. a3 {[%emt 0:00:04]} Ke7 {[%emt 0:04:15]} 18. c5 {[%emt 0:04:58]} f5 {[%emt 0:14:51]} 19. axb4 {[%emt 0:07:33]} Rxb4 {[%emt 0:04:34]} 20. Rba3 {[%emt 0:01:03]} g5 {[%emt 0:01:24]} 21. e3 {[%emt 0:03:16]} Rb2 {[%emt 0:04:07]} 22. Rxa5 {[%emt 0:03:51]} Rxf2 {[%emt 0:00:59]} 23. Ra7 {[%emt 0:01:11]} Rc8 {[%emt 0:01:21]} 24. Ne5 {[%emt 0:09:12]} Nxe5 {[%emt 0:01:20]} 25. Bxe4 {[%emt 0:00:05]} Rb2 {[%emt 0:00:22]} 26. Bb7 {[%emt 0:00:02]} Rb8 {[%emt 0:00:18]} 27. dxe5 {[%emt 0:00:08]} R2xb7 {[%emt 0:00:50]} 28. c6 {[%emt 0:00:04]} Rxa7 {[%emt 0:00:20]} 29. Rxa7 {[%emt 0:00:04]} Kd8 {[%emt 0:00:25]} 30. Kf2 {[%emt 0:05:00]} g4 {[%emt 0:07:36]} 31. e4 {[%emt 0:01:01]} Rb5 {[%emt 0:00:13]} 32. exf5 {[%emt 0:01:44]} Rxe5 {[%emt 0:00:04]} 33. Ra8+ {[%emt 0:00:37]} Ke7 {[%emt 0:00:03]} 34. f6+ {[%emt 0:01:16]} Kxf6 {[%emt 0:02:35]} 35. Rc8 {[%emt 0:00:04]} Rh5 {[%emt 0:00:25]} 36. Rxc7 {[%emt 0:02:22]} Rxh2+ {[%emt 0:00:20]} 37. Ke3 {[%emt 0:00:01]} Rc2 {[%emt 0:02:01]} 38. Kd3 {[%emt 0:01:00]} Rc1 {[%emt 0:00:34]} 39. Kd4 {[%emt 0:00:37]} h5 {[%emt 0:00:38]} 40. Rc8 {[%emt 0:00:00]} Kg7 {[%emt 0:01:07]} 41. Ke4 {[%emt 0:05:30]} Kf6 {[%emt 0:09:27]} 42. c7 {[%emt 0:00:26]} Ke7 {[%emt 0:00:57]} 43. Kf4 {[%emt 0:00:21]} Kd7 {[%emt 0:11:07]} 44. Rh8 {[%emt 0:00:11]} Kxc7 {[%emt 0:00:29]} 45. Rxh5 {[%emt 0:00:51]} Rc4+ {[%emt 0:00:04]} 46. Kg5 {[%emt 0:00:04]} Kd6 {[%emt 0:00:29]} 47. Rh1 {[%emt 0:02:06]} e5 {[%emt 0:02:57]} 48. Kf5 {[%emt 0:00:25]} Kd5 {[%emt 0:00:18]} 49. Rd1+ {[%emt 0:04:55]} Rd4 {[%emt 0:00:04]} 50. Ra1 {[%emt 0:00:12]} Rd2 {[%emt 0:01:42]} 51. Ra5+ {[%emt 0:00:52]} Kd4 {[%emt 0:00:02]} 52. Rxe5 {[%emt 0:01:39]} Rf2+ {[%emt 0:00:05]} 53. Ke6 {[%emt 0:00:04]} Rf3 {[%emt 0:00:28]} 54. Rg5 {[%emt 0:00:04]} Rxg3 {[%emt 0:00:05]} 55. Kf5 {[%emt 0:00:02]} Ke3 {[%emt 0:00:06]} 56. Rxg4 {[%emt 0:00:04]} Rxg4 {[%emt 0:00:03]} 57. Kxg4 {[%emt 0:00:04]} 1/2-1/2

[Event "71st RUS-ch Higher League 2018"]
[Site "Yaroslavl"]
[Date "2018.06.27"]
[Round "2"]
[White "Iskusnyh, Sergei"]
[Black "Turov, Maxim"]
[Result "0-1"]
[ECO "D71"]
[WhiteElo "2473"]
[BlackElo "2600"]
[Annotator "ChessBase"]
[PlyCount "78"]
[EventDate "2018.06.26"]
[EventType "swiss"]
[EventCountry "RUS"]
[SourceTitle "playchess.com"]
[Source "ChessBase"]
[SourceQuality "1"]
[TimeControl "40/5400+30:1800+30"]

1. d4 {[%emt 0:00:00]} Nf6 {[%emt 0:00:03]} 2. c4 {[%emt 0:00:00]} g6 {[%emt 0:00:06]} 3. g3 {[%emt 0:00:14]} c5 {[%emt 0:00:53]} 4. dxc5 {[%emt 0:02:34]} Qa5+ {[%emt 0:05:23]} 5. Nc3 {[%emt 0:01:07]} Qxc5 {[%emt 0:01:00]} 6. e4 {[%emt 0:03:21]} d6 {[%emt 0:03:52]} 7. Be3 {[%emt 0:03:53]} Qa5 {[%emt 0:00:35]} 8. Bg2 {[%emt 0:01:32]} Nc6 {[%emt 0:06:04]} 9. Nge2 {[%emt 0:06:13]} Ng4 {[%emt 0:15:25]} 10. Bf4 {[%emt 0:17:39]} Be6 {[%emt 0:06:29]} 11. h3 {[%emt 0:08:11]} Nf6 {[%emt 0:03:52]} 12. b3 {[%emt 0:04:14]} Bg7 {[%emt 0:00:40]} 13. Bd2 {[%emt 0:05:58]} O-O {[%emt 0:08:24]} 14. Nd5 {[%emt 0:01:59]} Qd8 {[%emt 0:00:07]} 15. O-O {[%emt 0:00:26]} Nd7 {[%emt 0:05:13]} 16. Rb1 {[%emt 0:04:41]} a6 {[%emt 0:03:57]} 17. Nef4 {[%emt 0:08:45]} Bxd5 {[%emt 0:03:50]} 18. Nxd5 {[%emt 0:14:32]} Nc5 {[%emt 0:05:32]} 19. b4 {[%emt 0:02:50]} Nd7 {[%emt 0:01:35]} 20. Be3 {[%emt 0:02:59]} a5 {[%emt 0:06:00]} 21. a3 {[%emt 0:02:26]} axb4 {[%emt 0:01:52]} 22. axb4 {[%emt 0:00:01]} e6 {[%emt 0:00:58]} 23. Nf4 {[%emt 0:00:53]} Qc7 24. c5 {[%emt 0:03:05]} dxc5 {[%emt 0:06:47]} 25. bxc5 {[%emt 0:00:02]} Rfd8 {[%emt 0:00:12]} 26. Qc1 {[%emt 0:01:32]} Bd4 27. Rb5 {[%emt 0:03:18]} Ra1 {[%emt 0:04:06]} 28. Qxa1 {[%emt 0:00:51]} Bxa1 {[%emt 0:00:09]} 29. Rxa1 {[%emt 0:00:01]} Nde5 {[%emt 0:00:11]} 30. Ne2 {[%emt 0:00:49]} Kg7 {[%emt 0:03:09]} 31. Rab1 {[%emt 0:00:49]} Rd7 {[%emt 0:00:07]} 32. Bf4 {[%emt 0:00:30]} h6 {[%emt 0:00:07]} 33. h4 {[%emt 0:00:33]} Qd8 {[%emt 0:00:27]} 34. Nc3 g5 {[%emt 0:01:19]} 35. hxg5 {[%emt 0:00:31]} hxg5 {[%emt 0:00:04]} 36. Bxe5+ {[%emt 0:00:27]} Nxe5 {[%emt 0:00:04]} 37. Rxb7 {[%emt 0:00:06]} Rxb7 {[%emt 0:00:05]} 38. Rxb7 {[%emt 0:00:02]} Qd2 {[%emt 0:00:19]} 39. Nb5 {[%emt 0:00:21]} Ng4 {[%emt 0:00:59]} 0-1

[Event "71st RUS-ch Higher League 2018"]
[Site "Yaroslavl"]
[Date "2018.06.27"]
[Round "2"]
[White "Gaifullin, Artur"]
[Black "Shaposhnikov, Evgeny"]
[Result "0-1"]
[ECO "E12"]
[WhiteElo "2448"]
[BlackElo "2572"]
[Annotator "RC"]
[PlyCount "118"]
[EventDate "2018.06.26"]
[EventType "swiss"]
[EventCountry "RUS"]
[SourceTitle "playchess.com"]
[Source "ChessBase"]
[SourceQuality "1"]
[TimeControl "40/5400+30:1800+30"]

1. d4 {[%emt 0:00:00]} Nf6 {[%emt 0:00:08]} 2. c4 {[%emt 0:00:00]} e6 {[%emt 0:00:15]} 3. Nf3 {[%emt 0:00:00]} b6 {[%emt 0:00:13]} 4. a3 {[%emt 0:00:00]} Bb7 {[%emt 0:01:09]} 5. Nc3 {[%emt 0:00:00]} g6 {[%emt 0:00:22]} 6. d5 {[%emt 0:01:55]} Bg7 {[%emt 0:00:40]} 7. e4 {[%emt 0:03:33]} O-O {[%emt 0:02:15]} 8. Be2 {[%emt 0:00:30]} exd5 {[%emt 0:00:17]} 9. exd5 {[%emt 0:00:02]} c6 {[%emt 0:00:45]} 10. O-O {[%emt 0:02:27]} cxd5 {[%emt 0:02:05]} 11. cxd5 {[%emt 0:00:36]} Na6 {[%emt 0:00:40]} 12. Bf4 {[%emt 0:05:11]} Nc5 {[%emt 0:01:54]} 13. Rc1 {[%emt 0:09:47]} Re8 {[%emt 0:02:23]} 14. Bc4 {[%emt 0:04:58]} Nfe4 {[%emt 0:03:06]} 15. Nxe4 {[%emt 0:01:36]} Nxe4 {[%emt 0:00:44]} 16. Rc2 {[%emt 0:10:36]} Rc8 {[%emt 0:07:23]} 17. Re1 {[%emt 0:15:00]} Nc3 {[%emt 0:19:18]} 18. Qd3 {[%emt 0:22:14]} Rxe1+ {[%emt 0:13:18]} 19. Nxe1 {[%emt 0:00:05]} Qe8 {[%emt 0:06:05]} 20. Be3 {[%emt 0:11:52]} Na4 {[%emt 0:03:48]} 21. Qe2 {[%emt 0:06:05]} Nxb2 {[%emt 0:03:50]} 22. Bb3 {[%emt 0:01:34]} Rxc2 {[%emt 0:02:05]} 23. Qxc2 {[%emt 0:00:01]} Qe5 {[%emt 0:02:01]} 24. Nf3 {[%emt 0:00:40]} Qc3 {[%emt 0:01:03]} 25. Qxc3 {[%emt 0:00:06]} Bxc3 {[%emt 0:00:01]} 26. Ng5 {[%emt 0:00:47]} Ba6 {[%emt 0:03:31]} 27. Ne4 {[%emt 0:00:48]} Bg7 {[%emt 0:02:03]} 28. Nd2 {[%emt 0:00:38]} Bb5 {[%emt 0:00:49]} 29. Bf4 {[%emt 0:00:30]} a5 {[%emt 0:05:56]} 30. Bc7 {[%emt 0:00:24]} a4 {[%emt 0:01:12]} 31. Bc2 {[%emt 0:00:43]} Bd4 {[%emt 0:03:23]} 32. Bd6 {[%emt 0:01:17]} f5 {[%emt 0:03:19]} 33. h4 {[%emt 0:01:00]} Bd3 {[%emt 0:03:25]} 34. Bxd3 {[%emt 0:00:19]} Nxd3 {[%emt 0:00:03]} 35. Kf1 {[%emt 0:00:12]} Bxf2 {[%emt 0:03:04]} 36. Ke2 {[%emt 0:01:05]} Bc5 {[%emt 0:00:28]} 37. Bc7 {[%emt 0:01:02]} Nc1+ {[%emt 0:01:10]} 38. Kd1 {[%emt 0:00:05]} Nb3 {[%emt 0:00:21]} 39. Nb1 {[%emt 0:00:50]} b5 {[%emt 0:02:33]} 40. Nc3 {[%emt 0:00:00]} Bxa3 {[%emt 0:00:42]} 41. Nxb5 {[%emt 0:00:39]} Be7 {[%emt 0:01:02]} 42. Kc2 {[%emt 0:03:21]} Bxh4 {[%emt 0:01:14]} 43. Nc3 {[%emt 0:00:04]} Nc5 {[%emt 0:00:43]} 44. Bb6 {[%emt 0:00:08]} Be7 {[%emt 0:00:32]} 45. Bxc5 {[%emt 0:00:56]} Bxc5 {[%emt 0:00:04]} 46. Nxa4 {[%emt 0:00:03]} Ba7 {[%emt 0:00:27]} 47. Nc3 {[%emt 0:00:16]} Kf7 {[%emt 0:00:07]} 48. Nb5 {[%emt 0:00:06]} Bc5 {[%emt 0:00:08]} 49. Kd3 {[%emt 0:00:04]} Kf6 {[%emt 0:00:12]} 50. Kc4 {[%emt 0:00:22]} d6 {[%emt 0:00:33]} 51. Nc7 {[%emt 0:00:05]} h5 {[%emt 0:00:24]} 52. Ne6 {[%emt 0:00:34]} Bf2 {[%emt 0:00:18]} 53. Kd3 {[%emt 0:00:14]} g5 {[%emt 0:00:26]} 54. Ke2 {[%emt 0:00:07]} Bb6 {[%emt 0:00:15]} 55. Nf8 {[%emt 0:00:06]} Ba7 {[%emt 0:01:28]} 56. Nh7+ {[%emt 0:00:46]} Kg6 {[%emt 0:00:13]} 57. Nf8+ {[%emt 0:00:05]} Kg7 {[%emt 0:00:06]} 58. Ne6+ {[%emt 0:00:05]} Kf6 {[%emt 0:00:04]} 59. Nd8 {[%emt 0:00:46]} h4 {[%emt 0:01:57]} 0-1